fUST/lending_fUST_20250611
["ID","MTS","AMOUNT","RATE_DAILY","PERIOD"]
[365273421,1749571855085,-588.0,0.00022191,4]
[365273422,1749571855095,-460.0,0.00022191,4]
[365273423,1749571855104,-540.0,0.00022191,4]
[365273424,1749571855114,-460.0,0.00022191,4]
[365273425,1749571855124,-460.0,0.00022191,4]
[365273426,1749571855133,-380.0,0.00022191,4]
[365273427,1749571855143,-176.06,0.00022191,4]
[365273428,1749571855152,-460.0,0.00022191,4]
[365273429,1749571855162,-460.0,0.00022191,4]
[365273430,1749571855172,-460.0,0.00022191,4]
[365273431,1749571855182,-380.0,0.00022191,4]
[365273432,1749571855192,-1289.03,0.00022191,4]
[365273433,1749571855202,-460.0,0.00022191,2]
[365273434,1749571855211,-1286.65,0.00022191,4]
[365273435,1749571855221,-1474.83,0.00022191,4]
[365273436,1749571855232,-563.05286985,0.00022191,4]
[365273437,1749571855242,-460.0,0.00022191,4]
[365273438,1749571855252,-1746.86,0.00022191,4]
[365273439,1749571855262,-460.0,0.00022191,4]
[365273440,1749571855272,-460.0,0.00022191,4]
[365273441,1749571855281,-460.0,0.00022191,4]
[365273442,1749571855291,-460.0,0.00022191,4]
[365273443,1749571855301,-460.0,0.00022191,4]
[365273444,1749571855310,-624.51,0.00022191,4]
[365273445,1749571855319,-460.0,0.00022191,4]
[365273446,1749571855329,-1626.79,0.00022191,4]
[365273447,1749571855339,-770.16,0.00022191,4]
[365273448,1749571855347,-460.0,0.00022191,4]
[365273449,1749571855357,-989.83,0.00022191,4]
[365273450,1749571855367,-460.0,0.00022191,4]
[365273451,1749571855377,-460.0,0.00022191,4]
[365273452,1749571855386,-1241.13,0.00022191,4]
[365273453,1749571855395,-460.0,0.00022191,4]
[365273454,1749571855405,-460.0,0.00022191,4]
[365273455,1749571855414,-460.0,0.00022191,4]
[365273456,1749571855423,-460.0,0.00022191,4]
[365273457,1749571855433,-460.0,0.00022191,4]
[365273458,1749571855442,-831.99,0.00022191,4]
[365273459,1749571855452,-209.84900211,0.0002221,6]
[365273460,1749571855461,-2768.67976656,0.00022228,2]
[365273461,1749571855471,-209.84900211,0.00022314,7]
[365273462,1749571855480,-229.6792923,0.00022344,2]
[365273463,1749571855490,-424.12530924,0.00022344,2]
[365273464,1749571855500,-842.5625,0.00022344,2]
[365273465,1749571855509,-160.0,0.00022344,2]
[365273466,1749571855519,-160.0,0.00022344,2]
[365273467,1749571855529,-160.0,0.00022347,2]
[365273468,1749571855538,-160.0,0.00022347,2]
[365273469,1749571855548,-209.84900211,0.00022417,7]
[365273470,1749571855557,-343.82,0.00022455,3]
[365273471,1749571855567,-305.97687301,0.00022465,4]
[365273472,1749571855576,-460.0,0.00022465,4]
[365273473,1749571855586,-460.0,0.00022465,4]
[365273474,1749571855595,-460.0,0.00022465,4]
[365273475,1749571855604,-460.0,0.00022465,4]
[365273476,1749571855613,-360.0,0.00022465,4]
[365273477,1749571855622,-260.0,0.00022465,4]
[365273478,1749571855631,-360.0,0.00022465,4]
[365273479,1749571855640,-230.0,0.00022465,4]
[365273480,1749571855649,-460.0,0.00022465,4]
[365273481,1749571855658,-460.0,0.00022465,4]
[365273482,1749571855667,-505.29982678,0.00022465,2]
[365273483,1749571855677,-460.0,0.00022465,4]
[365273484,1749571855687,-460.0,0.00022465,4]
[365273485,1749571855696,-460.0,0.00022465,4]
[365273486,1749571855708,-380.0,0.00022465,4]
[365273487,1749571855717,-460.0,0.00022465,4]
[365273488,1749571855727,-460.0,0.00022465,4]
[365273489,1749571855736,-350.0,0.00022465,4]
[365273490,1749571855746,-460.0,0.00022465,4]
[365273491,1749571855755,-768.98,0.00022465,4]
[365273492,1749571855764,-460.0,0.00022465,4]
[365273493,1749571855773,-320.0,0.00022465,4]
[365273494,1749571855782,-460.0,0.00022465,4]
[365273495,1749571855791,-460.0,0.00022465,4]
[365273496,1749571855800,-460.0,0.00022465,4]
[365273497,1749571855809,-460.0,0.00022465,4]
[365273498,1749571855818,-460.0,0.00022465,4]
[365273499,1749571855827,-360.0,0.00022465,4]
[365273500,1749571855837,-460.0,0.00022465,4]
[365273501,1749571855846,-658.36,0.00022465,4]
[365273502,1749571855856,-496.81,0.00022465,4]
[365273503,1749571855865,-460.0,0.00022465,4]
[365273504,1749571855875,-460.0,0.00022465,4]
[365273505,1749571855884,-1674.38,0.00022465,4]
[365273506,1749571855898,-460.0,0.00022465,4]
[365273507,1749571855907,-410.0,0.00022465,4]
[365273508,1749571855916,-517.82904102,0.00022465,4]
[365273509,1749571855925,-288.15995988,0.00022465,4]
[365273510,1749571855935,-699.3,0.00022465,4]
[365273511,1749571855944,-986.24,0.00022465,4]
[365273512,1749571855956,-460.0,0.00022465,4]
[365273513,1749571855965,-380.0,0.00022465,4]
[365273514,1749571855976,-483.88,0.00022465,4]
[365273515,1749571855986,-748.45,0.00022465,4]
[365273516,1749571855996,-416.23498753,0.00022465,4]
[365273517,1749571856006,-460.0,0.00022465,4]
[365273518,1749571856016,-460.0,0.00022465,4]
[365273519,1749571856025,-460.0,0.00022465,4]
[365273520,1749571856034,-460.0,0.00022465,4]
[365273521,1749571856044,-460.0,0.00022465,4]
[365273522,1749571856054,-380.0,0.00022465,4]
[365273523,1749571856064,-1289.03,0.00022465,4]
[365273524,1749571856074,-460.0,0.00022465,2]
[365273525,1749571856083,-1286.65,0.00022465,4]
[365273526,1749571856093,-1474.83,0.00022465,4]
[365273527,1749571856103,-460.0,0.00022465,4]
[365273528,1749571856112,-1746.86,0.00022465,4]
[365273529,1749571856122,-340.0,0.00022465,4]
[365273530,1749571856132,-460.0,0.00022465,4]
[365273531,1749571856142,-460.0,0.00022465,4]
[365273532,1749571856153,-460.0,0.00022465,4]
[365273533,1749571856163,-460.0,0.00022465,4]
[365273534,1749571856173,-624.51,0.00022465,4]
[365273535,1749571856183,-260.0,0.00022465,4]
[365273536,1749571856192,-1626.79,0.00022465,4]
[365273537,1749571856203,-770.16,0.00022465,4]
[365273538,1749571856213,-460.0,0.00022465,4]
[365273539,1749571856223,-989.83,0.00022465,4]
[365273540,1749571856233,-460.0,0.00022465,4]
[365273541,1749571856243,-460.0,0.00022465,4]
[365273542,1749571856253,-1241.13,0.00022465,4]
[365273543,1749571856263,-310.0,0.00022465,4]
[365273544,1749571856274,-460.0,0.00022465,4]
[365273545,1749571856284,-460.0,0.00022465,4]
[365273546,1749571856295,-460.0,0.00022465,4]
[365273547,1749571856305,-460.0,0.00022465,4]
[365273548,1749571856314,-831.99,0.00022465,4]
[365273549,1749571856325,-267.74381626,0.00022468,2]
[365273550,1749571856335,-514.87031705,0.00022471,2]
[365273551,1749571856344,-500.0,0.00022471,2]
[365273552,1749571856355,-500.0,0.00022471,2]
[365273553,1749571856364,-500.0,0.00022473,2]
[365273554,1749571856373,-500.0,0.00022473,2]
[365273555,1749571856383,-507.94,0.000225,7]
[365273556,1749571856392,-41886.86,0.000225,2]
[365273557,1749571856402,-1000.0,0.00022521,2]
[365273558,1749571856411,-500.0,0.00022521,2]
[365273559,1749571856422,-209.84900211,0.00022521,7]
[365273560,1749571856431,-209.84900211,0.00022624,7]
[365273561,1749571856441,-2768.67976656,0.00022639,2]
[365273562,1749571856451,-3000.0,0.000227,2]
[365273563,1749571856460,-592.0,0.00022705,2]
[365273564,1749571856469,-3000.0,0.0002271,2]
[365273565,1749571856480,-3000.0,0.0002272,2]
[365273566,1749571856490,-209.84900211,0.00022728,7]
[365273567,1749571856499,-3000.0,0.0002273,2]
[365273568,1749571856509,-380.0,0.00022739,4]
[365273569,1749571856518,-460.0,0.00022739,4]
[365273570,1749571856528,-340.0,0.00022739,4]
[365273571,1749571856537,-460.0,0.00022739,4]
[365273572,1749571856548,-280.0,0.00022739,4]
[365273573,1749571856557,-460.0,0.00022739,4]
[365273574,1749571856567,-460.0,0.00022739,4]
[365273575,1749571856577,-280.0,0.00022739,4]
[365273576,1749571856588,-534.27,0.00022739,4]
[365273577,1749571856598,-460.0,0.00022739,4]
[365273578,1749571856607,-320.0,0.00022739,4]
[365273579,1749571856617,-460.0,0.00022739,4]
[365273580,1749571856627,-768.98,0.00022739,4]
[365273581,1749571856636,-460.0,0.00022739,4]
[365273582,1749571856646,-460.0,0.00022739,4]
[365273583,1749571856656,-460.0,0.00022739,4]
[365273584,1749571856665,-460.0,0.00022739,4]
[365273585,1749571856676,-460.0,0.00022739,4]
[365273586,1749571856685,-460.0,0.00022739,4]
[365273587,1749571856695,-460.0,0.00022739,4]
[365273588,1749571856706,-658.36,0.00022739,4]
[365273589,1749571856716,-496.81,0.00022739,4]
[365273590,1749571856725,-460.0,0.00022739,4]
[365273591,1749571856735,-460.0,0.00022739,4]
[365273592,1749571856745,-1674.38,0.00022739,4]
[365273593,1749571856755,-460.0,0.00022739,4]
[365273594,1749571856765,-699.3,0.00022739,4]
[365273595,1749571856775,-986.24,0.00022739,4]
[365273596,1749571856784,-460.0,0.00022739,4]
[365273597,1749571856794,-483.88,0.00022739,4]
[365273598,1749571856804,-748.45,0.00022739,4]
[365273599,1749571856814,-462.8,0.00022739,4]
[365273600,1749571856823,-460.0,0.00022739,4]
[365273601,1749571856833,-460.0,0.00022739,4]
[365273602,1749571856843,-460.0,0.00022739,4]
[365273603,1749571856852,-460.0,0.00022739,4]
[365273604,1749571856862,-1289.03,0.00022739,4]
[365273605,1749571856872,-460.0,0.00022739,2]
[365273606,1749571856882,-1286.65,0.00022739,4]
[365273607,1749571856893,-1474.83,0.00022739,4]
[365273608,1749571856904,-380.0,0.00022739,4]
[365273609,1749571856914,-1746.86,0.00022739,4]
[365273610,1749571856924,-460.0,0.00022739,4]
[365273611,1749571856933,-460.0,0.00022739,4]
[365273612,1749571856945,-460.0,0.00022739,4]
[365273613,1749571856956,-460.0,0.00022739,4]
[365273614,1749571856966,-624.51,0.00022739,4]
[365273615,1749571856975,-1626.79,0.00022739,4]
[365273616,1749571856989,-770.16,0.00022739,4]
[365273617,1749571856999,-391.45555516,0.00022739,4]
[365273618,1749571857008,-989.83,0.00022739,4]
[365273619,1749571857018,-380.0,0.00022739,4]
[365273620,1749571857028,-460.0,0.00022739,4]
[365273621,1749571857037,-1241.13,0.00022739,4]
[365273622,1749571857046,-460.0,0.00022739,4]
[365273623,1749571857056,-460.0,0.00022739,4]
[365273624,1749571857066,-460.0,0.00022739,4]
[365273625,1749571857076,-460.0,0.00022739,4]
[365273626,1749571857085,-3000.0,0.0002274,2]
[365273627,1749571857095,-3000.0,0.0002275,2]
[365273628,1749571857106,-262.06248566,0.00022756,2]
[365273629,1749571857115,-3000.0,0.0002276,2]
[365273630,1749571857126,-3000.0,0.0002277,2]
[365273631,1749571857136,-500.0,0.00022773,2]
[365273632,1749571857146,-500.0,0.00022773,2]
[365273633,1749571857156,-3000.0,0.0002278,2]
[365273634,1749571857165,-3000.0,0.0002279,2]
[365273635,1749571857175,-3000.0,0.000228,2]
[365273636,1749571857185,-83434.21,0.000228,7]
[365273637,1749571857195,-1777.01,0.000228,7]
[365273638,1749571857204,-3000.0,0.0002281,2]
[365273639,1749571857214,-3000.0,0.0002282,2]
[365273640,1749571857224,-3257.240158,0.0002283,2]
[365273641,1749571857234,-209.84900211,0.00022831,8]
[365273642,1749571857244,-2306.26,0.00022837,2]
[365273643,1749571857254,-205.16095159,0.00022848,4]
[365273644,1749571857264,-500.0,0.00022848,4]
[365273645,1749571857274,-151.0,0.00022848,4]
[365273646,1749571857283,-500.0,0.00022848,4]
[365273647,1749571857293,-500.0,0.00022848,4]
[365273648,1749571857303,-232.97706971,0.00022848,4]
[365273649,1749571857312,-151.0,0.00022848,4]
[365273650,1749571857321,-151.0,0.00022848,4]
[365273651,1749571857331,-198.0,0.00022848,4]
[365273652,1749571857341,-151.81095745,0.00022848,4]
[365273653,1749571857350,-151.0,0.00022848,4]
[365273654,1749571857360,-151.0,0.00022848,4]
[365273655,1749571857369,-151.0,0.00022848,4]
[365273656,1749571857379,-500.0,0.00022875,4]
[365273657,1749571857389,-500.0,0.00022875,4]
[365273658,1749571857398,-500.0,0.00022875,4]
[365273659,1749571857408,-151.0,0.00022875,4]
[365273660,1749571857418,-205.80618261,0.00022875,4]
[365273661,1749571857428,-151.0,0.00022875,4]
[365273662,1749571857438,-500.0,0.00022903,4]
[365273663,1749571857448,-500.0,0.00022903,4]
[365273664,1749571857459,-500.0,0.00022903,4]
[365273665,1749571857470,-420.0,0.00022917,2]
[365273666,1749571857479,-500.0,0.0002293,4]
[365273667,1749571857489,-209.84900211,0.00022934,8]
[365273668,1749571857499,-500.0,0.00022958,4]
[365273669,1749571857508,-500.0,0.00022985,4]
[365273670,1749571857518,-1000.0,0.00023,23]
[365273671,1749571857528,-500.0,0.00023012,4]
[365273672,1749571857537,-460.0,0.00023013,4]
[365273673,1749571857547,-360.0,0.00023013,4]
[365273674,1749571857558,-380.0,0.00023013,4]
[365273675,1749571857568,-360.0,0.00023013,4]
[365273676,1749571857578,-460.0,0.00023013,4]
[365273677,1749571857588,-460.0,0.00023013,4]
[365273678,1749571857598,-768.98,0.00023013,4]
[365273679,1749571857701,-460.0,0.00023013,4]
[365273680,1749571857724,-460.0,0.00023013,4]
[365273681,1749571857734,-340.0,0.00023013,4]
[365273682,1749571857744,-460.0,0.00023013,4]
[365273683,1749571857754,-460.0,0.00023013,4]
[365273684,1749571857763,-460.0,0.00023013,4]
[365273685,1749571857773,-600.0,0.00023013,4]
[365273686,1749571857782,-658.36,0.00023013,4]
[365273687,1749571857792,-496.81,0.00023013,4]
[365273688,1749571857801,-460.0,0.00023013,4]
[365273689,1749571857811,-460.0,0.00023013,4]
[365273690,1749571857820,-1674.38,0.00023013,4]
[365273691,1749571857829,-460.0,0.00023013,4]
[365273692,1749571857839,-699.3,0.00023013,4]
[365273693,1749571857848,-986.24,0.00023013,4]
[365273694,1749571857858,-460.0,0.00023013,4]
[365273695,1749571857867,-483.88,0.00023013,4]
[365273696,1749571857877,-748.45,0.00023013,4]
[365273697,1749571857886,-360.0,0.00023013,4]
[365273698,1749571857901,-396.91,0.00023013,4]
[365273699,1749571857910,-460.0,0.00023013,4]
[365273700,1749571857920,-380.0,0.00023013,4]
[365273701,1749571857931,-1289.03,0.00023013,4]
[365273702,1749571857941,-1286.65,0.00023013,4]
[365273703,1749571857951,-460.0,0.00023013,2]
[365273704,1749571857961,-1474.83,0.00023013,4]
[365273705,1749571857973,-1746.86,0.00023013,4]
[365273706,1749571857984,-460.0,0.00023013,4]
[365273707,1749571857994,-460.0,0.00023013,4]
[365273708,1749571858003,-335.32988689,0.00023013,4]
[365273709,1749571858013,-460.0,0.00023013,4]
[365273710,1749571858023,-624.51,0.00023013,4]
[365273711,1749571858034,-1626.79,0.00023013,4]
[365273712,1749571858044,-770.16,0.00023013,4]
[365273713,1749571858054,-989.83,0.00023013,4]
[365273714,1749571858064,-380.0,0.00023013,4]
[365273715,1749571858074,-1241.13,0.00023013,4]
[365273716,1749571858084,-460.0,0.00023013,4]
[365273717,1749571858094,-460.0,0.00023013,4]
[365273718,1749571858103,-460.0,0.00023013,4]
[365273719,1749571858113,-460.0,0.00023013,4]
[365273720,1749571858122,-500.0,0.00023021,2]
[365273721,1749571858131,-209.84900211,0.00023038,8]
[365273722,1749571858141,-527.023099,0.0002304,4]
[365273723,1749571858150,-1500.0,0.00023068,2]
[365273724,1749571858160,-209.84900211,0.00023141,8]
[365273725,1749571858170,-5000.0,0.00023151,2]
[365273726,1749571858179,-207.4,0.00023151,2]
[365273727,1749571858189,-500.0,0.00023206,2]
[365273728,1749571858198,-314.7712905,0.00023233,2]
[365273729,1749571858208,-573.3540349,0.00023233,2]
[365273730,1749571858218,-153.0,0.00023233,2]
[365273731,1749571858227,-153.0,0.00023233,2]
[365273732,1749571858237,-176.8341807,0.00023233,2]
[365273733,1749571858246,-573.3540349,0.00023233,2]
[365273734,1749571858255,-153.0,0.00023233,2]
[365273735,1749571858265,-153.0,0.00023233,2]
[365273736,1749571858274,-573.3540349,0.00023233,2]
[365273737,1749571858284,-383.4265406,0.00023233,2]
[365273738,1749571858294,-209.84900211,0.00023245,8]
[365273739,1749571858303,-460.0,0.00023287,4]
[365273740,1749571858312,-249.9338273,0.00023287,4]
[365273741,1749571858321,-460.0,0.00023287,4]
[365273742,1749571858330,-768.98,0.00023287,4]
[365273743,1749571858339,-460.0,0.00023287,4]
[365273744,1749571858348,-380.0,0.00023287,4]
[365273745,1749571858357,-460.0,0.00023287,4]
[365273746,1749571858367,-460.0,0.00023287,4]
[365273747,1749571858376,-460.0,0.00023287,4]
[365273748,1749571858384,-658.36,0.00023287,4]
[365273749,1749571858394,-496.81,0.00023287,4]
[365273750,1749571858403,-460.0,0.00023287,4]
[365273751,1749571858412,-460.0,0.00023287,4]
[365273752,1749571858422,-1674.38,0.00023287,4]
[365273753,1749571858431,-417.62,0.00023287,4]
[365273754,1749571858440,-699.3,0.00023287,4]
[365273755,1749571858449,-986.24,0.00023287,4]
[365273756,1749571858460,-460.0,0.00023287,4]
[365273757,1749571858470,-483.88,0.00023287,4]
[365273758,1749571858479,-748.45,0.00023287,4]
[365273759,1749571858489,-460.0,0.00023287,4]
[365273760,1749571858498,-1289.03,0.00023287,4]
[365273761,1749571858508,-1286.65,0.00023287,4]
[365273762,1749571858517,-460.0,0.00023287,2]
[365273763,1749571858527,-1474.83,0.00023287,4]
[365273764,1749571858536,-1746.86,0.00023287,4]
[365273765,1749571858546,-460.0,0.00023287,4]
[365273766,1749571858555,-460.0,0.00023287,4]
[365273767,1749571858565,-460.0,0.00023287,4]
[365273768,1749571858575,-624.51,0.00023287,4]
[365273769,1749571858585,-1626.79,0.00023287,4]
[365273770,1749571858595,-770.16,0.00023287,4]
[365273771,1749571858608,-989.83,0.00023287,4]
[365273772,1749571858618,-1241.13,0.00023287,4]
[365273773,1749571858628,-460.0,0.00023287,4]
[365273774,1749571858638,-460.0,0.00023287,4]
[365273775,1749571858648,-460.0,0.00023287,4]
[365273776,1749571858658,-460.0,0.00023287,4]
[365273777,1749571858667,-209.84900211,0.00023348,9]
[365273778,1749571858676,-592.0,0.00023391,2]
[365273779,1749571858686,-209.84900211,0.00023452,9]
[365273780,1749571858696,-592.0,0.00023538,7]
[365273781,1749571858708,-209.84900211,0.00023555,9]
[365273782,1749571858718,-460.0,0.00023561,4]
[365273783,1749571858727,-168.94930371,0.00023561,4]
[365273784,1749571858736,-768.98,0.00023561,4]
[365273785,1749571858746,-460.0,0.00023561,4]
[365273786,1749571858755,-460.0,0.00023561,4]
[365273787,1749571858766,-460.0,0.00023561,4]
[365273788,1749571858776,-580.0,0.00023561,4]
[365273789,1749571858786,-658.36,0.00023561,4]
[365273790,1749571858796,-496.81,0.00023561,4]
[365273791,1749571858805,-460.0,0.00023561,4]
[365273792,1749571858815,-466.82,0.00023561,4]
[365273793,1749571858825,-1674.38,0.00023561,4]
[365273794,1749571858835,-699.3,0.00023561,4]
[365273795,1749571858844,-986.24,0.00023561,4]
[365273796,1749571858854,-460.0,0.00023561,4]
[365273797,1749571858864,-483.88,0.00023561,4]
[365273798,1749571858875,-748.45,0.00023561,4]
[365273799,1749571858885,-341.25,0.00023561,4]
[365273800,1749571858895,-1289.03,0.00023561,4]
[365273801,1749571858909,-1286.65,0.00023561,4]
[365273802,1749571858921,-460.0,0.00023561,2]
[365273803,1749571858931,-1474.83,0.00023561,4]
[365273804,1749571858943,-1746.86,0.00023561,4]
[365273805,1749571858956,-460.0,0.00023561,4]
[365273806,1749571858969,-460.0,0.00023561,4]
[365273807,1749571858980,-460.0,0.00023561,4]
[365273808,1749571858992,-624.51,0.00023561,4]
[365273809,1749571859004,-1626.79,0.00023561,4]
[365273810,1749571859015,-770.16,0.00023561,4]
[365273811,1749571859025,-989.83,0.00023561,4]
[365273812,1749571859036,-1241.13,0.00023561,4]
[365273813,1749571859046,-460.0,0.00023561,4]
[365273814,1749571859057,-460.0,0.00023561,4]
[365273815,1749571859067,-460.0,0.00023561,4]
[365273816,1749571859078,-460.0,0.00023561,4]
[365273817,1749571859088,-1418.97,0.000236,2]
[365273818,1749571859098,-209.84900211,0.00023659,9]
[365273819,1749571859108,-5000.0,0.00023699,2]
[365273820,1749571859119,-41886.86,0.000237,2]
[365273821,1749571859128,-209.84900211,0.00023762,9]
[365273822,1749571859138,-209.204,0.00023804,2]
[365273823,1749571859148,-216.675,0.00023804,2]
[365273824,1749571859158,-965.62,0.00023804,2]
[365273825,1749571859168,-653.0,0.00023804,2]
[365273826,1749571859178,-2160.0,0.00023804,2]
[365273827,1749571859189,-405.0,0.00023804,2]
[365273828,1749571859199,-3075.02,0.0002383,2]
[365273829,1749571859213,-460.0,0.00023835,4]
[365273830,1749571859224,-768.98,0.00023835,4]
[365273831,1749571859233,-460.0,0.00023835,4]
[365273832,1749571859243,-460.0,0.00023835,4]
[365273833,1749571859254,-460.0,0.00023835,4]
[365273834,1749571859264,-658.36,0.00023835,4]
[365273835,1749571859274,-496.81,0.00023835,4]
[365273836,1749571859284,-460.0,0.00023835,4]
[365273837,1749571859293,-1674.38,0.00023835,4]
[365273838,1749571859303,-699.3,0.00023835,4]
[365273839,1749571859312,-986.24,0.00023835,4]
[365273840,1749571859322,-165.29,0.00023835,4]
[365273841,1749571859332,-483.88,0.00023835,4]
[365273842,1749571859343,-748.45,0.00023835,4]
[365273843,1749571859353,-1289.03,0.00023835,4]
[365273844,1749571859362,-1286.65,0.00023835,4]
[365273845,1749571859372,-460.0,0.00023835,2]
[365273846,1749571859382,-1474.83,0.00023835,4]
[365273847,1749571859392,-1746.86,0.00023835,4]
[365273848,1749571859402,-281.6037852,0.00023835,4]
[365273849,1749571859412,-460.0,0.00023835,4]
[365273850,1749571859423,-460.0,0.00023835,4]
[365273851,1749571859432,-624.51,0.00023835,4]
[365273852,1749571859442,-1626.79,0.00023835,4]
[365273853,1749571859452,-770.16,0.00023835,4]
[365273854,1749571859465,-989.83,0.00023835,4]
[365273855,1749571859475,-1241.13,0.00023835,4]
[365273856,1749571859485,-460.0,0.00023835,4]
[365273857,1749571859495,-418.85082259,0.00023835,4]
[365273858,1749571859505,-460.0,0.00023835,4]
[365273859,1749571859515,-470.66140974,0.00023835,4]
[365273860,1749571859525,-209.84900211,0.00023866,10]
[365273861,1749571859535,-842.5625,0.000239,3]
[365273862,1749571859545,-209.84900211,0.00023969,10]
[365273863,1749571859554,-2000.0,0.00024,4]
[365273864,1749571859564,-1000.0,0.00024,24]
[365273865,1749571859574,-28870.46852913,0.00024,2]
[365273866,1749571859899,-430.0,0.00021095,4]
[365273867,1749571859910,-460.0,0.00021369,4]
[365273868,1749571859920,-460.0,0.00021643,4]
[365273869,1749571859931,-380.0,0.00021917,4]
[365273870,1749571859941,-565.44,0.00022191,4]
[365273871,1749571859951,-565.44,0.00022465,4]
[365273872,1749571859963,-831.99,0.00022739,4]
[365273873,1749571859973,-565.44,0.00022739,4]
[365273874,1749571859983,-831.99,0.00023013,4]
[365273875,1749571859993,-565.44,0.00023013,4]
[365273876,1749571860002,-831.99,0.00023287,4]
[365273877,1749571860012,-565.44,0.00023287,4]
[365273878,1749571860022,-831.99,0.00023561,4]
[365273879,1749571860033,-565.44,0.00023561,4]
[365273880,1749571860043,-831.99,0.00023835,4]
[365273881,1749571860054,-565.44,0.00023835,4]
[365273882,1749571860065,-4942.53608883,0.00024,2]
[365273883,1749571860077,-229.6792923,0.00024,7]
[365273884,1749571860088,-151.10137663,0.00024,2]
[365273885,1749571860098,-158.29,0.00024,2]
[365273886,1749571860109,-177.5657859,0.00024027,2]
[365273887,1749571860120,-306.0,0.00024027,2]
[365273888,1749571860130,-158.7504224,0.00024027,2]
[365273889,1749571860141,-176.8341807,0.00024027,2]
[365273890,1749571860150,-573.3540349,0.00024027,2]
[365273891,1749571860161,-158.7504224,0.00024027,2]
[365273892,1749571860175,-176.8341807,0.00024027,2]
[365273893,1749571860186,-306.0,0.00024027,2]
[365273894,1749571860196,-573.3540349,0.00024027,2]
[365273895,1749571860311,-158.7504224,0.00024027,2]
[365273896,1749571860322,-176.8341807,0.00024027,2]
[365273897,1749571860333,-573.3540349,0.00024027,2]
[365273898,1749571860343,-176.8341807,0.00024027,2]
[365273899,1749571860353,-32.71808169,0.00024027,2]
[365273900,1749571860366,-126.03234071,0.00024027,2]
[365273901,1749571860376,-158.7504224,0.00024027,2]
[365273902,1749571860387,-571.3360607,0.00024027,2]
[365273903,1749571860397,-500.0,0.0002406,2]
[365273904,1749571860407,-209.84900211,0.00024072,10]
[365273905,1749571860417,-834.44004758,0.000241,3]
[365273906,1749571860430,-8.12245242,0.000241,3]
[365273907,1749571860440,-732.95754763,0.000241,7]
[365273908,1749571860712,-460.0,0.00021095,4]
[365273909,1749571860722,-365.32,0.00021369,4]
[365273910,1749571860732,-1044.05245237,0.000241,7]
[365273911,1749571860743,-460.0,0.00024109,4]
[365273912,1749571860753,-460.0,0.00024109,4]
[365273913,1749571860763,-658.36,0.00024109,4]
[365273914,1749571860774,-496.81,0.00024109,4]
[365273915,1749571860784,-460.0,0.00024109,4]
[365273916,1749571860794,-1674.38,0.00024109,4]
[365273917,1749571860804,-699.3,0.00024109,4]
[365273918,1749571860814,-986.24,0.00024109,4]
[365273919,1749571860824,-483.88,0.00024109,4]
[365273920,1749571860835,-748.45,0.00024109,4]